[Event "NJSK 2021 Meisjes A&B"]
[Site "Almelo, Netherlands"]
[Date "2021.08.05"]
[Round "5.2"]
[White "Cordes, Jule"]
[Black "Den Heijer, Rolinde"]
[Result "1-0"]
[TimeControl "90min/40moves + 30sec/move"]
[WhiteElo "1790"]
[BlackElo "1483"]

1. d4 {[%clk 01:30:57]} {[%emt 00:00:02]} Nf6 {[%clk 01:30:56]} {[%emt
00:00:04]} 2. c4 {[%clk 01:31:19]} {[%emt 00:00:08]} e6 {[%clk 01:31:19]}
{[%emt 00:00:07]} 3. Nc3 {[%clk 01:31:38]} {[%emt 00:00:12]} Bb4 {[%clk
01:31:23]} {[%emt 00:00:26]} 4. Nf3 {[%clk 01:31:56]} {[%emt 00:00:12]} h6
{[%clk 01:31:23]} {[%emt 00:00:30]} 5. h3 {[%clk 01:30:50]} {[%emt 00:01:36]}
b6 {[%clk 01:28:08]} {[%emt 00:03:45]} 6. Bf4 {[%clk 01:29:52]} {[%emt
00:01:29]} Bb7 {[%clk 01:27:15]} {[%emt 00:01:23]} 7. e3 {[%clk 01:29:33]}
{[%emt 00:00:48]} O-O {[%clk 01:26:23]} {[%emt 00:01:21]} 8. Be2 {[%clk
01:27:10]} {[%emt 00:02:53]} d5 {[%clk 01:24:32]} {[%emt 00:02:21]} 9. O-O
{[%clk 01:24:57]} {[%emt 00:02:43]} a6 {[%clk 01:21:08]} {[%emt 00:03:54]} 10.
Rc1 {[%clk 01:19:30]} {[%emt 00:05:57]} Bd6 {[%clk 01:18:40]} {[%emt 00:02:59]}
11. Bxd6 {[%clk 01:08:09]} {[%emt 00:11:51]} Qxd6 {[%clk 01:15:43]} {[%emt
00:03:27]} 12. cxd5 {[%clk 01:04:33]} {[%emt 00:04:06]} exd5 {[%clk 01:08:43]}
{[%emt 00:07:29]} 13. Qb3 {[%clk 00:55:30]} {[%emt 00:09:33]} Nbd7 {[%clk
01:04:31]} {[%emt 00:04:42]} 14. Rfd1 {[%clk 00:51:05]} {[%emt 00:04:55]} Rfe8
{[%clk 01:01:54]} {[%emt 00:03:07]} 15. Bd3 {[%clk 00:47:03]} {[%emt 00:04:32]}
Nf8 {[%clk 00:55:50]} {[%emt 00:06:34]} 16. Bb1 {[%clk 00:35:10]} {[%emt
00:12:24]} Ne6 {[%clk 00:48:02]} {[%emt 00:08:17]} 17. Ne2 {[%clk 00:29:16]}
{[%emt 00:06:24]} Ng5 {[%clk 00:42:03]} {[%emt 00:06:30]} 18. Ne5 {[%clk
00:20:58]} {[%emt 00:08:48]} Nfe4 {[%clk 00:36:20]} {[%emt 00:06:12]} 19. f3
{[%clk 00:12:17]} {[%emt 00:09:12]} Nf6 {[%clk 00:35:53]} {[%emt 00:00:57]} 20.
Ng3 {[%clk 00:11:44]} {[%emt 00:01:03]} g6 {[%clk 00:30:11]} {[%emt 00:06:11]}
21. Qc2 {[%clk 00:08:54]} {[%emt 00:03:21]} Ne6 {[%clk 00:27:55]} {[%emt
00:02:46]} 22. Kf2 {[%clk 00:06:51]} {[%emt 00:02:33]} Rac8 {[%clk 00:20:44]}
{[%emt 00:07:41]} 23. Nxf7 {[%clk 00:06:08]} {[%emt 00:01:13]} Qf8 {[%clk
00:18:23]} {[%emt 00:02:51]} 24. Qxg6+ {[%clk 00:06:14]} {[%emt 00:00:24]} Qg7
{[%clk 00:17:19]} {[%emt 00:01:34]} 25. Nxh6+ {[%clk 00:06:22]} {[%emt
00:00:22]} Kf8 {[%clk 00:16:23]} {[%emt 00:01:20]} 26. Qxg7+ {[%clk 00:05:53]}
{[%emt 00:01:05]} Kxg7 {[%clk 00:16:51]} {[%emt 00:00:02]} 27. Ng4 {[%clk
00:05:10]} {[%emt 00:01:13]} Nd7 {[%clk 00:15:46]} {[%emt 00:01:34]} 28. h4
{[%clk 00:04:38]} {[%emt 00:01:02]} c5 {[%clk 00:14:47]} {[%emt 00:01:29]} 29.
Nf5+ {[%clk 00:04:41]} {[%emt 00:00:27]} 1-0

[Event "NJSK 2021 Meisjes A&B"]
[Site "Almelo, Netherlands"]
[Date "2021.08.05"]
[Round "5.3"]
[White "Zubair, Javeria Komal"]
[Black "Basa, Manasvita"]
[Result "1-0"]
[TimeControl "90min/40moves + 30sec/move"]
[WhiteElo "1490"]
[BlackElo "1711"]

1. Nf3 {[%clk 01:30:57]} {[%emt 00:00:02]} d5 {[%clk 01:30:54]} {[%emt
00:00:06]} 2. c4 {[%clk 01:31:24]} {[%emt 00:00:04]} e6 {[%clk 01:31:20]}
{[%emt 00:00:03]} 3. e3 {[%clk 01:31:47]} {[%emt 00:00:07]} Nf6 {[%clk
01:31:41]} {[%emt 00:00:09]} 4. Be2 {[%clk 01:32:10]} {[%emt 00:00:07]} Bd6
{[%clk 01:31:48]} {[%emt 00:00:23]} 5. Nc3 {[%clk 01:32:12]} {[%emt 00:00:29]}
O-O {[%clk 01:30:29]} {[%emt 00:01:49]} 6. O-O {[%clk 01:32:02]} {[%emt
00:00:40]} dxc4 {[%clk 01:26:28]} {[%emt 00:04:31]} 7. Bxc4 {[%clk 01:31:16]}
{[%emt 00:01:16]} a6 {[%clk 01:26:20]} {[%emt 00:00:38]} 8. a4 {[%clk
01:27:19]} {[%emt 00:04:27]} b6 {[%clk 01:26:15]} {[%emt 00:00:35]} 9. d4
{[%clk 01:22:27]} {[%emt 00:05:22]} Bb7 {[%clk 01:22:45]} {[%emt 00:04:00]} 10.
Re1 {[%clk 01:16:04]} {[%emt 00:06:53]} Nbd7 {[%clk 01:20:17]} {[%emt
00:02:58]} 11. e4 {[%clk 01:15:32]} {[%emt 00:01:02]} Bb4 {[%clk 01:20:41]}
{[%emt 00:00:06]} 12. Bg5 {[%clk 01:13:04]} {[%emt 00:02:57]} h6 {[%clk
01:12:40]} {[%emt 00:08:31]} 13. Bh4 {[%clk 01:13:04]} {[%emt 00:00:31]} g5
{[%clk 01:10:22]} {[%emt 00:02:47]} 14. Nxg5 {[%clk 01:03:40]} {[%emt
00:09:54]} hxg5 {[%clk 01:10:46]} {[%emt 00:00:06]} 15. Bxg5 {[%clk 01:04:03]}
{[%emt 00:00:08]} Qe8 {[%clk 01:09:09]} {[%emt 00:02:08]} 16. e5 {[%clk
00:55:38]} {[%emt 00:08:54]} Nh7 {[%clk 01:06:13]} {[%emt 00:03:25]} 17. Bh6
{[%clk 00:44:40]} {[%emt 00:11:28]} Kh8 {[%clk 01:06:35]} {[%emt 00:00:08]} 18.
Bxf8 {[%clk 00:44:33]} {[%emt 00:00:38]} Ndxf8 {[%clk 01:06:50]} {[%emt
00:00:15]} 19. Bd3 {[%clk 00:41:56]} {[%emt 00:03:06]} Ng6 {[%clk 01:04:52]}
{[%emt 00:02:28]} 20. Re3 {[%clk 00:40:22]} {[%emt 00:02:05]} Qe7 {[%clk
00:52:42]} {[%emt 00:12:40]} 21. Rh3 {[%clk 00:34:54]} {[%emt 00:05:58]} Qg5
{[%clk 00:52:48]} {[%emt 00:00:24]} 22. Rg3 {[%clk 00:34:34]} {[%emt 00:00:50]}
Qh6 {[%clk 00:50:19]} {[%emt 00:02:59]} 23. Ne4 {[%clk 00:33:07]} {[%emt
00:01:57]} Nf4 {[%clk 00:37:38]} {[%emt 00:13:11]} 24. Qg4 {[%clk 00:25:09]}
{[%emt 00:08:28]} Nxd3 {[%clk 00:28:32]} {[%emt 00:09:36]} 25. Rh3 {[%clk
00:15:16]} {[%emt 00:10:23]} Qf4 {[%clk 00:27:32]} {[%emt 00:01:30]} 26. Rxh7+
{[%clk 00:03:44]} {[%emt 00:12:02]} Kxh7 {[%clk 00:27:55]} {[%emt 00:00:07]} 27.
Nf6+ {[%clk 00:04:03]} {[%emt 00:00:11]} Kh8 {[%clk 00:28:15]} {[%emt
00:00:10]} 28. Qh3+ {[%clk 00:04:20]} {[%emt 00:00:12]} Kg7 {[%clk 00:28:06]}
{[%emt 00:00:39]} 29. Nh5+ {[%clk 00:04:45]} {[%emt 00:00:05]} Kf8 {[%clk
00:28:26]} {[%emt 00:00:10]} 30. Nxf4 {[%clk 00:04:58]} {[%emt 00:00:18]} Nxf4
{[%clk 00:28:50]} {[%emt 00:00:06]} 31. Qh6+ {[%clk 00:05:14]} {[%emt
00:00:14]} Ke7 {[%clk 00:29:12]} {[%emt 00:00:08]} 32. Qxf4 {[%clk 00:05:34]}
{[%emt 00:00:09]} Rd8 {[%clk 00:27:21]} {[%emt 00:02:21]} 33. Qf6+ {[%clk
00:05:27]} {[%emt 00:00:37]} Ke8 {[%clk 00:27:46]} {[%emt 00:00:05]} 34. Rd1
{[%clk 00:05:34]} {[%emt 00:00:23]} c5 {[%clk 00:27:34]} {[%emt 00:00:42]} 35.
Qh8+ {[%clk 00:04:47]} {[%emt 00:01:17]} Ke7 {[%clk 00:27:55]} {[%emt
00:00:09]} 36. Qh4+ {[%clk 00:05:12]} {[%emt 00:00:05]} Ke8 {[%clk 00:28:15]}
{[%emt 00:00:10]} 37. h3 {[%clk 00:05:16]} {[%emt 00:00:26]} c4 {[%clk
00:24:01]} {[%emt 00:04:44]} 38. g4 {[%clk 00:03:23]} {[%emt 00:02:23]} Bf3
{[%clk 00:19:51]} {[%emt 00:04:41]} 39. Rc1 {[%clk 00:03:36]} {[%emt 00:00:16]}
Rxd4 {[%clk 00:20:12]} {[%emt 00:00:09]} 40. Qf6 {[%clk 00:03:12]} {[%emt
00:00:54]} Be2 {[%clk 00:18:26]} {[%emt 00:02:15]} 41. Qh8+ {[%clk 00:02:15]}
{[%emt 00:01:28]} Ke7 {[%clk 00:18:31]} {[%emt 00:00:26]} 42. Qb8 {[%clk
00:00:47]} {[%emt 00:01:58]} Bc5 {[%clk 00:17:18]} {[%emt 00:01:42]} 43. a5
{[%clk 00:29:32]} {[%emt 00:01:45]} Rd8 {[%clk 00:44:08]} {[%emt 00:03:40]} 44.
Qb7+ {[%clk 00:29:23]} {[%emt 00:00:39]} Rd7 {[%clk 00:44:31]} {[%emt
00:00:07]} 45. Qc6 {[%clk 00:28:44]} {[%emt 00:01:09]} Bd4 {[%clk 00:38:41]}
{[%emt 00:06:21]} 46. axb6 {[%clk 00:26:59]} {[%emt 00:02:15]} Bxe5 {[%clk
00:38:48]} {[%emt 00:00:23]} 47. b7 {[%clk 00:25:53]} {[%emt 00:01:35]} Bd3
{[%clk 00:32:41]} {[%emt 00:06:37]} 48. Qc5+ {[%clk 00:24:37]} {[%emt
00:01:47]} Kf6 {[%clk 00:32:37]} {[%emt 00:00:34]} 49. Qxe5+ {[%clk 00:24:18]}
{[%emt 00:00:49]} Kxe5 {[%clk 00:32:54]} {[%emt 00:00:13]} 50. b8=Q+ {[%clk
00:24:41]} {[%emt 00:00:07]} Kf6 {[%clk 00:33:06]} {[%emt 00:00:17]} 51. Qf4+
{[%clk 00:24:31]} {[%emt 00:00:40]} Ke7 {[%clk 00:33:30]} {[%emt 00:00:06]} 52.
h4 {[%clk 00:24:24]} {[%emt 00:00:37]} Rb7 {[%clk 00:33:12]} {[%emt 00:00:49]}
53. Rxc4 {[%clk 00:23:30]} {[%emt 00:01:24]} Bxc4 {[%clk 00:32:56]} {[%emt
00:00:45]} 54. Qxc4 {[%clk 00:23:55]} {[%emt 00:00:05]} Rxb2 {[%clk 00:33:15]}
{[%emt 00:00:11]} 55. Qxa6 {[%clk 00:24:12]} {[%emt 00:00:14]} Rb1+ {[%clk
00:32:56]} {[%emt 00:00:49]} 56. Kg2 {[%clk 00:24:34]} {[%emt 00:00:07]} Kf8
{[%clk 00:33:02]} {[%emt 00:00:25]} 57. Qd3 {[%clk 00:24:11]} {[%emt 00:00:53]}
Re1 {[%clk 00:32:20]} {[%emt 00:01:12]} 58. h5 {[%clk 00:23:54]} {[%emt
00:00:47]} e5 {[%clk 00:32:07]} {[%emt 00:00:43]} 59. h6 {[%clk 00:24:06]}
{[%emt 00:00:17]} Kg8 {[%clk 00:31:54]} {[%emt 00:00:44]} 60. Qd8+ {[%clk
00:24:24]} {[%emt 00:00:11]} Kh7 {[%clk 00:32:15]} {[%emt 00:00:09]} 61. Qf8
{[%clk 00:24:40]} {[%emt 00:00:13]} Kg6 {[%clk 00:32:11]} {[%emt 00:00:35]} 62.
Qg7# {[%clk 00:24:54]} {[%emt 00:00:17]} 1-0

[Event "NJSK 2021 Meisjes A&B"]
[Site "Almelo, Netherlands"]
[Date "2021.08.05"]
[Round "5.4"]
[White "Van Essen, Marieke"]
[Black "Honkoop, Stella"]
[Result "1-0"]
[TimeControl "90min/40moves + 30sec/move"]
[WhiteElo "1610"]
[BlackElo "1573"]

1. e4 {[%clk 01:30:58]} {[%emt 00:00:02]} c5 {[%clk 01:30:55]} {[%emt
00:00:06]} 2. Nf3 {[%clk 01:31:25]} {[%emt 00:00:04]} Nc6 {[%clk 01:31:19]}
{[%emt 00:00:05]} 3. d4 {[%clk 01:31:52]} {[%emt 00:00:03]} cxd4 {[%clk
01:31:43]} {[%emt 00:00:06]} 4. Nxd4 {[%clk 01:32:16]} {[%emt 00:00:06]} Nf6
{[%clk 01:31:58]} {[%emt 00:00:15]} 5. Nc3 {[%clk 01:32:26]} {[%emt 00:00:20]}
e5 {[%clk 01:32:18]} {[%emt 00:00:10]} 6. Ndb5 {[%clk 01:32:48]} {[%emt
00:00:09]} d6 {[%clk 01:32:42]} {[%emt 00:00:05]} 7. Nd5 {[%clk 01:32:57]}
{[%emt 00:00:22]} Nxd5 {[%clk 01:32:35]} {[%emt 00:00:36]} 8. exd5 {[%clk
01:33:21]} {[%emt 00:00:06]} Ne7 {[%clk 01:31:42]} {[%emt 00:01:24]} 9. c4
{[%clk 01:33:30]} {[%emt 00:00:20]} a6 {[%clk 01:31:49]} {[%emt 00:00:23]} 10.
Nc3 {[%clk 01:33:49]} {[%emt 00:00:11]} Ng6 {[%clk 01:27:03]} {[%emt 00:05:16]}
11. Bd3 {[%clk 01:31:07]} {[%emt 00:03:11]} f5 {[%clk 01:22:42]} {[%emt
00:04:51]} 12. O-O {[%clk 01:26:30]} {[%emt 00:05:08]} Be7 {[%clk 01:22:09]}
{[%emt 00:01:03]} 13. f3 {[%clk 01:21:19]} {[%emt 00:05:40]} O-O {[%clk
01:17:27]} {[%emt 00:05:13]} 14. b3 {[%clk 01:16:41]} {[%emt 00:05:08]} Bg5
{[%clk 01:10:53]} {[%emt 00:07:04]} 15. Ne2 {[%emt 00:17:32]} Qf6 {[%clk
00:58:46]} 16. Bb2 {[%clk 01:07:08]} {[%emt 00:05:37]} Be3+ {[%clk 00:48:24]}
{[%emt 00:10:53]} 17. Kh1 {[%clk 01:06:23]} {[%emt 00:01:15]} Nf4 {[%clk
00:47:00]} {[%emt 00:01:54]} 18. Nxf4 {[%clk 01:02:45]} {[%emt 00:04:08]} Bxf4
{[%clk 00:47:18]} {[%emt 00:00:12]} 19. g3 {[%clk 01:00:47]} {[%emt 00:02:28]}
Be3 {[%clk 00:46:13]} {[%emt 00:01:35]} 20. f4 {[%clk 01:00:45]} {[%emt
00:00:32]} Qe7 {[%clk 00:40:06]} {[%emt 00:06:37]} 21. Qe2 {[%clk 00:55:48]}
{[%emt 00:05:27]} exf4 {[%clk 00:21:36]} {[%emt 00:19:00]} 22. gxf4 {[%clk
00:52:01]} {[%emt 00:04:17]} Re8 {[%clk 00:19:37]} {[%emt 00:02:29]} 23. Rae1
{[%clk 00:49:19]} {[%emt 00:03:11]} g5 {[%clk 00:17:50]} {[%emt 00:02:18]} 24.
fxg5 {[%clk 00:42:44]} {[%emt 00:07:04]} Qxg5 {[%clk 00:15:08]} {[%emt
00:03:12]} 25. Rg1 {[%clk 00:42:07]} {[%emt 00:01:07]} 1-0

[Event "NJSK 2021 Meisjes A&B"]
[Site "Almelo, Netherlands"]
[Date "2021.08.05"]
[Round "5.5"]
[White "Maris, Evi"]
[Black "Martinez, Sara"]
[Result "0-1"]
[TimeControl "90min/40moves + 30sec/move"]
[WhiteElo "1232"]
[BlackElo "1528"]

1. e4 {[%clk 01:30:58]} {[%emt 00:00:02]} e6 {[%clk 01:30:54]} {[%emt
00:00:08]} 2. d4 {[%clk 01:31:24]} {[%emt 00:00:04]} d5 {[%clk 01:31:19]}
{[%emt 00:00:04]} 3. exd5 {[%clk 01:31:49]} {[%emt 00:00:05]} exd5 {[%clk
01:31:44]} {[%emt 00:00:05]} 4. Nf3 {[%clk 01:32:13]} {[%emt 00:00:05]} Nf6
{[%clk 01:32:10]} {[%emt 00:00:04]} 5. Bg5 {[%clk 01:32:35]} {[%emt 00:00:08]}
h6 {[%clk 01:32:18]} {[%emt 00:00:23]} 6. Bh4 {[%clk 01:33:00]} {[%emt
00:00:04]} c5 {[%clk 01:25:18]} {[%emt 00:07:31]} 7. dxc5 {[%clk 01:29:07]}
{[%emt 00:04:23]} Bxc5 {[%clk 01:25:14]} {[%emt 00:00:34]} 8. Bb5+ {[%clk
01:29:21]} {[%emt 00:00:15]} Bd7 {[%clk 01:16:29]} {[%emt 00:09:15]} 9. Bxd7+
{[%clk 01:29:16]} {[%emt 00:00:36]} Nbxd7 {[%clk 01:16:39]} {[%emt 00:00:20]}
10. O-O {[%clk 01:29:36]} {[%emt 00:00:10]} O-O {[%clk 01:16:50]} {[%emt
00:00:19]} 11. Nc3 {[%emt 00:12:19]} g5 {[%clk 01:05:16]} 12. Bg3 {[%clk
01:30:02]} {[%emt 00:00:19]} Ne4 {[%emt 00:07:49]} 13. Ne2 {[%clk 01:29:54]}
{[%emt 00:00:37]} f5 {[%clk 00:47:00]} {[%emt 00:11:27]} 14. Qxd5+ {[%clk
01:28:44]} {[%emt 00:01:40]} Kh7 {[%clk 00:46:36]} {[%emt 00:00:55]} 15. Be5
{[%clk 01:17:27]} {[%emt 00:11:47]} Nxe5 {[%clk 00:42:11]} {[%emt 00:04:55]} 16.
Qxe5 {[%clk 01:17:33]} {[%emt 00:00:22]} Qb6 {[%clk 00:42:03]} {[%emt
00:00:40]} 17. Nfd4 {[%clk 01:16:49]} {[%emt 00:01:14]} Rae8 {[%clk 00:38:40]}
{[%emt 00:03:53]} 18. Qd5 {[%clk 01:15:55]} {[%emt 00:01:22]} Rd8 {[%clk
00:35:02]} {[%emt 00:04:09]} 19. Qe5 {[%clk 01:15:04]} {[%emt 00:01:17]} Bxd4
{[%clk 00:34:36]} {[%emt 00:01:00]} 20. Nxd4 {[%clk 01:14:48]} {[%emt
00:00:46]} Qxd4 {[%clk 00:34:31]} {[%emt 00:00:36]} 21. Qe7+ {[%clk 01:14:37]}
{[%emt 00:00:40]} Qg7 {[%clk 00:34:36]} {[%emt 00:00:25]} 22. Qe6 {[%clk
01:14:33]} {[%emt 00:00:33]} Rd6 {[%clk 00:32:02]} {[%emt 00:03:05]} 23. Qc4
{[%clk 01:13:47]} {[%emt 00:01:17]} Nd2 {[%clk 00:31:17]} {[%emt 00:01:14]} 24.
Qb4 {[%clk 01:13:44]} {[%emt 00:00:34]} Rd4 {[%clk 00:31:31]} {[%emt 00:00:15]}
25. Qc5 {[%clk 01:13:37]} {[%emt 00:00:36]} Nxf1 {[%clk 00:31:39]} {[%emt
00:00:23]} 26. Rxf1 {[%clk 01:13:57]} {[%emt 00:00:10]} b6 {[%clk 00:31:04]}
{[%emt 00:01:06]} 27. Qb5 {[%clk 01:14:01]} {[%emt 00:00:25]} Qd7 {[%clk
00:30:55]} {[%emt 00:00:38]} 28. Qe2 {[%clk 01:13:57]} {[%emt 00:00:34]} Rd2
{[%clk 00:30:52]} {[%emt 00:00:34]} 29. Qh5 {[%clk 01:13:30]} {[%emt 00:00:57]}
Rxc2 {[%clk 00:31:05]} {[%emt 00:00:18]} 30. h3 {[%clk 01:13:01]} {[%emt
00:00:58]} Rxb2 {[%clk 00:30:57]} {[%emt 00:00:38]} 31. Rd1 {[%clk 01:13:07]}
{[%emt 00:00:25]} Rd2 {[%clk 00:30:16]} {[%emt 00:01:11]} 32. Re1 {[%clk
01:13:23]} {[%emt 00:00:14]} g4 {[%clk 00:26:34]} {[%emt 00:04:12]} 33. Kh2
{[%clk 01:12:25]} {[%emt 00:01:27]} Qd6+ {[%clk 00:24:11]} {[%emt 00:02:53]} 34.
Kg1 {[%clk 01:11:57]} {[%emt 00:00:58]} Rd1 {[%clk 00:24:29]} {[%emt 00:00:13]}
35. Rxd1 {[%clk 01:12:14]} {[%emt 00:00:12]} Qxd1+ {[%clk 00:24:55]} {[%emt
00:00:04]} 36. Kh2 {[%clk 01:12:33]} {[%emt 00:00:09]} g3+ {[%clk 00:25:20]}
{[%emt 00:00:08]} 37. Kxg3 {[%clk 01:12:48]} {[%emt 00:00:13]} Qxh5 {[%clk
00:25:46]} {[%emt 00:00:04]} 38. a4 {[%clk 01:13:05]} {[%emt 00:00:14]} f4+
{[%clk 00:25:39]} {[%emt 00:00:38]} 39. Kh2 {[%clk 01:13:27]} {[%emt 00:00:07]}
Rg8 {[%clk 00:25:48]} {[%emt 00:00:21]} 40. a5 {[%clk 01:13:42]} {[%emt
00:00:16]} Qg5 {[%clk 00:26:00]} {[%emt 00:00:18]} 41. g4 {[%clk 01:14:01]}
{[%emt 00:00:10]} fxg3+ {[%clk 00:26:23]} {[%emt 00:00:07]} 42. Kg2 {[%clk
01:14:16]} {[%emt 00:00:15]} Qd2 {[%clk 00:26:16]} {[%emt 00:00:37]} 43. Kf3
{[%clk 01:14:40]} {[%emt 00:00:06]} Qxf2+ {[%clk 00:26:31]} {[%emt 00:00:14]}
44. Ke4 {[%clk 01:15:04]} {[%emt 00:00:07]} Re8+ {[%clk 00:26:39]} {[%emt
00:00:22]} 45. Kd5 {[%clk 01:15:27]} {[%emt 00:00:07]} Qc5# {[%clk 00:27:01]}
{[%emt 00:00:08]} 0-1

[Event "NJSK 2021 Meisjes A&B"]
[Site "Almelo, Netherlands"]
[Date "2021.08.05"]
[Round "5.6"]
[White "Bogouslavskii, Veronique"]
[Black "Bertholee, Arjuna"]
[Result "1-0"]
[TimeControl "90min/40moves + 30sec/move"]
[WhiteElo "1207"]
[BlackElo "1144"]

1. d4 {[%clk 01:30:55]} {[%emt 00:00:05]} d5 {[%clk 01:30:53]} {[%emt
00:00:07]} 2. e3 {[%clk 01:31:18]} {[%emt 00:00:08]} Nf6 {[%clk 01:30:48]}
{[%emt 00:00:34]} 3. Bd3 {[%clk 01:31:35]} {[%emt 00:00:14]} c5 {[%clk
01:21:43]} {[%emt 00:09:35]} 4. c3 {[%clk 01:31:49]} {[%emt 00:00:16]} c4
{[%clk 01:17:30]} {[%emt 00:04:43]} 5. Bc2 {[%clk 01:31:47]} {[%emt 00:00:31]}
b5 {[%clk 01:15:30]} {[%emt 00:02:31]} 6. Nd2 {[%clk 01:30:22]} {[%emt
00:01:55]} Nc6 {[%clk 01:10:19]} {[%emt 00:05:40]} 7. f4 {[%clk 01:30:33]}
{[%emt 00:00:19]} Bg4 {[%clk 01:07:19]} {[%emt 00:03:30]} 8. Ngf3 {[%clk
01:30:42]} {[%emt 00:00:21]} e6 {[%clk 01:05:46]} {[%emt 00:02:04]} 9. O-O
{[%clk 01:30:42]} {[%emt 00:00:30]} Bd6 {[%clk 01:02:33]} {[%emt 00:03:43]} 10.
Qe1 {[%clk 01:30:16]} {[%emt 00:00:55]} O-O {[%clk 00:50:47]} {[%emt 00:12:14]}
11. Qh4 {[%clk 01:27:43]} {[%emt 00:03:04]} h6 {[%clk 00:43:38]} {[%emt
00:07:39]} 12. Ne5 {[%clk 01:26:41]} {[%emt 00:01:33]} Bf5 {[%clk 00:30:56]}
{[%emt 00:13:13]} 13. Nxc6 {[%clk 01:23:47]} {[%emt 00:03:23]} Qc7 {[%clk
00:28:22]} {[%emt 00:03:05]} 14. Bxf5 {[%clk 01:23:55]} {[%emt 00:00:21]} Qxc6
{[%clk 00:28:00]} {[%emt 00:00:52]} 15. Bc2 {[%clk 01:23:53]} {[%emt 00:00:32]}
a5 {[%clk 00:25:22]} {[%emt 00:03:10]} 16. g4 {[%clk 01:22:04]} {[%emt
00:02:18]} Ne4 {[%clk 00:22:21]} {[%emt 00:03:30]} 17. Rf3 {[%clk 01:19:34]}
{[%emt 00:03:00]} f6 {[%clk 00:20:41]} {[%emt 00:02:10]} 18. Qh5 {[%clk
01:17:43]} {[%emt 00:02:21]} Qe8 {[%clk 00:19:01]} {[%emt 00:02:11]} 19. Qxe8
{[%clk 01:16:59]} {[%emt 00:01:14]} Raxe8 {[%clk 00:18:44]} {[%emt 00:00:47]}
20. Nxe4 {[%clk 01:17:03]} {[%emt 00:00:26]} dxe4 {[%clk 00:19:01]} {[%emt
00:00:12]} 21. Bxe4 {[%clk 01:17:29]} {[%emt 00:00:04]} e5 {[%clk 00:19:17]}
{[%emt 00:00:15]} 22. Bd5+ {[%clk 01:16:02]} {[%emt 00:01:56]} Kh8 {[%clk
00:19:36]} {[%emt 00:00:10]} 23. Bc6 {[%clk 01:16:13]} {[%emt 00:00:20]} Rb8
{[%clk 00:19:51]} {[%emt 00:00:16]} 24. fxe5 {[%clk 01:15:50]} {[%emt
00:00:53]} fxe5 {[%clk 00:20:03]} {[%emt 00:00:17]} 25. Rxf8+ {[%clk 01:16:06]}
{[%emt 00:00:14]} Bxf8 {[%clk 00:20:05]} {[%emt 00:00:28]} 26. dxe5 {[%clk
01:16:17]} {[%emt 00:00:19]} Bc5 {[%clk 00:18:51]} {[%emt 00:01:45]} 27. Kf2
{[%clk 01:15:05]} {[%emt 00:01:41]} b4 {[%clk 00:18:48]} {[%emt 00:00:34]} 28.
Bd2 {[%clk 01:14:58]} {[%emt 00:00:37]} Rd8 {[%clk 00:18:11]} {[%emt 00:01:07]}
29. Ke2 {[%clk 01:14:58]} {[%emt 00:00:29]} Rc8 {[%clk 00:17:00]} {[%emt
00:01:42]} 30. Bd5 {[%clk 01:14:22]} {[%emt 00:01:05]} Re8 {[%clk 00:16:53]}
{[%emt 00:00:38]} 31. e6 {[%clk 01:14:33]} {[%emt 00:00:17]} Bd6 {[%clk
00:16:08]} {[%emt 00:01:16]} 32. cxb4 {[%clk 01:14:38]} {[%emt 00:00:26]} axb4
{[%clk 00:16:06]} {[%emt 00:00:31]} 33. Bxc4 {[%clk 01:14:57]} {[%emt
00:00:11]} Bxh2 {[%clk 00:16:00]} {[%emt 00:00:36]} 34. Bxb4 {[%clk 01:15:13]}
{[%emt 00:00:15]} Be5 {[%clk 00:16:02]} {[%emt 00:00:28]} 35. Rf1 {[%clk
01:14:58]} {[%emt 00:00:45]} Bxb2 {[%clk 00:16:02]} {[%emt 00:00:29]} 36. e7
{[%clk 01:15:19]} {[%emt 00:00:10]} Bf6 {[%clk 00:16:13]} {[%emt 00:00:19]} 37.
Rxf6 {[%clk 01:15:10]} {[%emt 00:00:38]} gxf6 {[%clk 00:16:32]} {[%emt
00:00:11]} 38. Bf7 {[%clk 01:15:30]} {[%emt 00:00:10]} Rb8 {[%clk 00:16:14]}
{[%emt 00:00:48]} 39. e8=Q+ {[%clk 01:15:41]} {[%emt 00:00:19]} Rxe8 {[%clk
00:16:32]} {[%emt 00:00:12]} 40. Bxe8 {[%clk 01:16:09]} {[%emt 00:00:02]} f5
{[%clk 00:16:54]} {[%emt 00:00:09]} 41. Bc3+ {[%clk 01:16:28]} {[%emt
00:00:11]} Kh7 {[%clk 00:17:11]} {[%emt 00:00:13]} 42. gxf5 {[%clk 01:16:06]}
{[%emt 00:00:52]} h5 {[%clk 00:15:48]} {[%emt 00:01:53]} 43. f6 {[%clk
01:16:27]} {[%emt 00:00:09]} h4 {[%clk 00:16:07]} {[%emt 00:00:11]} 44. f7
{[%clk 01:16:48]} {[%emt 00:00:09]} h3 {[%clk 00:16:31]} {[%emt 00:00:05]} 45.
f8=Q {[%clk 01:17:10]} {[%emt 00:00:09]} h2 {[%clk 00:16:54]} {[%emt 00:00:06]}
46. Qh8# {[%clk 01:17:35]} {[%emt 00:00:04]} 1-0